bitfinex/quotes_BTCUSD_20220101
["timestamp","ask_amount","ask_price","bid_price","bid_amount"]
[1641025810589,1.19948848,47322.0,47321.0,0.01729375]
[1641025811084,1.21833025,47322.0,47321.0,0.00408951]
[1641025811284,1.19687937,47322.0,47321.0,0.00408951]
[1641025812083,1.2154304,47322.0,47321.0,0.00408951]
[1641025812282,1.19658863,47322.0,47321.0,0.00408951]
[1641025812683,1.19658863,47322.0,47321.0,0.00414951]
[1641025813085,1.21857181,47322.0,47321.0,0.00414951]
[1641025813287,1.20002078,47322.0,47321.0,0.00414951]
[1641025813951,1.30002078,47322.0,47321.0,0.00414951]
[1641025814745,1.31907905,47322.0,47321.0,0.00414951]
[1641025814945,1.29709587,47322.0,47321.0,0.00414951]
[1641025815146,1.31889671,47322.0,47321.0,0.00414951]
[1641025815346,1.29983844,47322.0,47321.0,0.00414951]
[1641025815546,1.29983844,47322.0,47319.0,0.01320537]
[1641025815747,0.52110462,47321.0,47319.0,0.01320537]
[1641025815948,0.052865,47320.0,47319.0,0.02641056]
[1641025816146,0.267125,47320.0,47319.0,0.01320519]
[1641025816546,0.317125,47320.0,47319.0,0.01320519]
[1641025817045,0.417125,47320.0,47319.0,0.01320519]
[1641025818189,0.739923,47320.0,47319.0,0.01320519]
[1641025819089,0.739923,47320.0,47315.0,0.00930379]
[1641025819090,1.03,47319.0,47315.0,0.00930379]
[1641025819288,0.21547812,47316.0,47315.0,0.00930379]
[1641025819488,0.42409712,47316.0,47315.0,0.00930379]
[1641025819788,0.00124191,47313.0,47301.0,0.002]
[1641025819989,0.10616569,47312.0,47301.0,0.002]
[1641025820190,0.98,47311.0,47301.0,0.002]
[1641025820389,0.052878,47304.0,47301.0,0.002]
[1641025820589,0.28664737,47303.0,47302.0,0.0003469]
[1641025820790,0.39281306,47303.0,47302.0,0.01251986]
[1641025820989,0.49281306,47303.0,47302.0,0.01251986]
[1641025821192,0.82544362,47303.0,47302.0,0.01251986]
[1641025821630,1.14546162,47303.0,47302.0,0.01251986]
[1641025822734,1.15578206,47303.0,47302.0,0.01251986]
[1641025823433,1.16575313,47303.0,47302.0,0.01251986]
[1641025824135,1.18377194,47303.0,47302.0,0.01251986]
[1641025825382,1.20329482,47303.0,47302.0,0.01251986]
[1641025825583,1.1649845,47303.0,47301.0,0.002]
[1641025825786,0.36562741,47302.0,47301.0,0.002]
[1641025825990,1.39426,47301.0,47296.0,0.0092801]
[1641025826184,0.21554776,47297.0,47296.0,0.0092801]
[1641025826387,0.26554776,47297.0,47296.0,0.0092801]
[1641025826586,0.31554776,47297.0,47291.0,0.002]
[1641025826985,0.10616569,47292.0,47291.0,0.002]
[1641025827186,0.10746296,47292.0,47291.0,0.002]
[1641025827484,0.15746296,47292.0,47291.0,0.002]
[1641025827685,0.42172296,47292.0,47291.0,0.002]
[1641025827888,0.51536296,47292.0,47281.0,0.002]
[1641025828085,0.30332588,47287.0,47281.0,0.002]
[1641025828289,0.085914,47285.0,47282.0,0.00018258]
[1641025828936,0.35179623,47285.0,47282.0,0.00018258]
[1641025829329,0.29890223,47285.0,47282.0,0.00018258]
[1641025829529,0.26588223,47285.0,47282.0,0.00018258]
[1641025830030,0.052893,47284.0,47282.0,0.00018258]
[1641025830432,0.052893,47284.0,47283.0,0.338633]
[1641025830833,0.052893,47284.0,47283.0,0.33879732]
[1641025831233,0.052893,47284.0,47283.0,0.61756386]
[1641025831830,0.052893,47284.0,47283.0,0.00016432]
[1641025833697,0.262893,47284.0,47283.0,0.00016432]
[1641025835490,0.262893,47284.0,47283.0,0.33879732]
[1641025835985,0.262893,47284.0,47283.0,0.00016432]
[1641025836837,0.262893,47284.0,47276.0,1.55135886]
[1641025837037,0.262893,47284.0,47277.0,0.338633]
[1641025837239,0.262893,47284.0,47278.0,0.338633]
[1641025837637,0.262893,47284.0,47279.0,7.303e-05]
[1641025841482,0.262893,47284.0,47276.0,0.0001278]
[1641025841678,0.262893,47284.0,47275.0,0.00014606]
[1641025842478,0.262893,47284.0,47274.0,0.00016432]
[1641025842678,0.262893,47284.0,47273.0,0.00018258]
[1641025842879,0.262893,47284.0,47275.0,2.57764775]
[1641025843282,0.362893,47284.0,47276.0,0.0001278]
[1641025843480,0.052895,47280.0,47276.0,0.0001278]
[1641025845231,0.052895,47280.0,47277.0,0.338633]
[1641025845631,0.052895,47280.0,47278.0,9.129e-05]
[1641025845836,0.052895,47280.0,47279.0,0.338633]
[1641025846234,0.052895,47280.0,47279.0,0.33870603]
[1641025848190,0.052895,47280.0,47279.0,7.303e-05]
[1641025848592,0.052895,47280.0,47276.0,0.0001278]
[1641025848792,0.052895,47280.0,47277.0,0.338633]
[1641025849194,0.052895,47280.0,47278.0,9.129e-05]
[1641025849694,0.052895,47280.0,47276.0,0.0001278]
[1641025849891,0.052895,47280.0,47277.0,0.338633]
[1641025850092,0.052895,47280.0,47276.0,0.0001278]
[1641025850294,0.052895,47280.0,47278.0,9.129e-05]
[1641025850493,0.052895,47280.0,47276.0,0.0001278]
[1641025850694,0.052895,47280.0,47278.0,9.129e-05]
[1641025850893,0.052895,47280.0,47276.0,0.0001278]
[1641025851294,0.052895,47280.0,47275.0,2.47777555]
[1641025851532,0.052895,47280.0,47276.0,0.338633]
[1641025851733,0.00127368,47276.0,47271.0,2.0899]
[1641025851935,0.0541431,47274.0,47271.0,1.1802]
[1641025852130,0.0012391,47274.0,47272.0,7.304e-05]
[1641025852532,0.24756533,47274.0,47272.0,7.304e-05]
[1641025852731,0.27802741,47273.0,47272.0,7.304e-05]
[1641025853131,0.33093341,47273.0,47272.0,7.304e-05]
[1641025854132,0.54093341,47273.0,47272.0,7.304e-05]
[1641025854533,0.55103909,47273.0,47272.0,7.304e-05]
[1641025854732,0.60103909,47273.0,47272.0,7.304e-05]
[1641025854934,0.55103909,47273.0,47272.0,7.304e-05]
[1641025855392,0.65103909,47273.0,47272.0,7.304e-05]
[1641025855692,0.67250292,47273.0,47272.0,7.304e-05]
[1641025856292,0.64093341,47273.0,47272.0,7.304e-05]
[1641025856499,0.65897318,47273.0,47272.0,7.304e-05]
[1641025857697,0.65024721,47273.0,47272.0,7.304e-05]
[1641025858593,0.66951282,47273.0,47272.0,7.304e-05]
[1641025858794,0.66019902,47273.0,47272.0,7.304e-05]
[1641025859446,0.67954991,47273.0,47272.0,7.304e-05]
[1641025859644,0.6602843,47273.0,47272.0,7.304e-05]
[1641025860046,0.8745443,47273.0,47272.0,7.304e-05]
[1641025860546,0.89281754,47273.0,47272.0,7.304e-05]
[1641025860745,0.87346665,47273.0,47272.0,7.304e-05]
[1641025861445,0.89515122,47273.0,47272.0,7.304e-05]
[1641025861645,0.87687798,47273.0,47272.0,7.304e-05]
[1641025862684,0.87635112,47273.0,47272.0,7.304e-05]
[1641025863486,0.89464003,47273.0,47272.0,7.304e-05]
[1641025863684,0.87348232,47273.0,47272.0,7.304e-05]
[1641025864286,0.59545491,47273.0,47272.0,7.304e-05]
[1641025864487,0.61693477,47273.0,47272.0,7.304e-05]
[1641025864688,0.59864586,47273.0,47272.0,7.304e-05]
[1641025865088,0.38438586,47273.0,47272.0,7.304e-05]
[1641025865494,0.30629113,47273.0,47272.0,7.304e-05]
[1641025865987,0.25338513,47273.0,47272.0,0.33997068]
[1641025866187,0.25338513,47273.0,47272.0,0.7057009]
[1641025866440,0.21,47273.0,47272.0,0.7057009]
[1641025866631,0.2295567,47273.0,47272.0,0.7057009]
[1641025866834,0.0012354,47294.0,47273.0,0.10554612]
[1641025867034,0.052879,47293.0,47288.0,0.00124724]
[1641025867233,0.00933681,47298.0,47288.0,0.00124724]
[1641025867433,0.0001,47297.0,47289.0,0.338633]
[1641025867633,0.00048341,47297.0,47289.0,0.338633]
[1641025867832,0.26523501,47296.0,47288.0,0.00124724]
[1641025868336,0.0003469,47295.0,47288.0,0.57830764]
[1641025868534,0.052884,47292.0,47288.0,0.57830764]
[1641025868734,0.052884,47292.0,47289.0,0.338633]
[1641025868935,0.00027386,47291.0,47289.0,0.338633]
[1641025869136,0.00027386,47291.0,47290.0,0.23603585]
[1641025869338,0.26523501,47296.0,47290.0,0.57466885]
[1641025869534,0.05288,47293.0,47290.0,0.23603585]
[1641025869733,0.0003469,47295.0,47288.0,0.00124724]
[1641025869935,0.0003469,47295.0,47289.0,0.338633]
[1641025870179,0.00032864,47294.0,47290.0,0.25523227]
[1641025870380,0.00032864,47294.0,47291.0,0.338633]
[1641025870583,0.00031038,47293.0,47291.0,0.338633]
[1641025870779,0.00031038,47293.0,47292.0,0.2396492]
[1641025870979,0.052879,47293.0,47292.0,0.2396492]
[1641025871181,0.052879,47293.0,47288.0,0.27033635]
[1641025871382,0.052879,47293.0,47289.0,0.338633]
[1641025871580,0.00029212,47292.0,47289.0,0.338633]
[1641025871982,0.00027386,47291.0,47289.0,0.338633]
[1641025872182,0.00027386,47291.0,47290.0,0.24956575]
[1641025872384,0.052877,47295.0,47290.0,0.58819875]
[1641025872584,0.052877,47295.0,47290.0,0.24956575]
[1641025872783,0.00029212,47292.0,47290.0,0.24956575]
[1641025872984,0.00029212,47292.0,47291.0,0.338633]
[1641025873188,0.052877,47295.0,47291.0,0.58170922]
[1641025873484,0.00032864,47294.0,47291.0,0.58170922]
[1641025873948,0.00031038,47293.0,47291.0,0.58170922]
[1641025874146,0.00031038,47293.0,47292.0,0.24368958]
[1641025874340,0.26523501,47296.0,47292.0,0.24368958]
[1641025874540,0.26523501,47296.0,47289.0,0.26634809]
[1641025874741,0.0003469,47295.0,47289.0,0.26634809]
[1641025874941,0.21,47293.0,47288.0,0.57830764]
[1641025875240,0.00029212,47292.0,47289.0,0.338633]
[1641025875441,0.00029212,47292.0,47288.0,0.57830764]
[1641025875640,0.00027386,47291.0,47288.0,0.57830764]
[1641025876040,0.00025561,47290.0,47288.0,0.57830764]
[1641025876241,0.00025561,47290.0,47289.0,0.338633]
[1641025876442,0.27554136,47296.0,47289.0,0.338633]
[1641025876643,0.27554136,47296.0,47288.0,0.57830764]
[1641025876843,0.00029212,47292.0,47288.0,0.57830764]
[1641025877043,0.05317212,47292.0,47288.0,0.57830764]
[1641025877244,0.00027386,47291.0,47288.0,0.57830764]
[1641025877543,0.00025561,47290.0,47289.0,0.338633]
[1641025879682,0.00025561,47290.0,47288.0,0.57830764]
[1641025879683,0.05313761,47290.0,47288.0,0.57830764]
[1641025879881,0.05313761,47290.0,47288.0,0.5770604]
[1641025880081,0.00023735,47289.0,47288.0,0.5770604]
[1641025880281,0.00023735,47289.0,47286.0,0.69247248]
[1641025880282,0.00023735,47289.0,47286.0,0.5770604]
[1641025880482,0.29647146,47288.0,47286.0,0.5770604]
[1641025880681,0.29669055,47288.0,47286.0,0.5770604]
[1641025880884,0.00020083,47287.0,47283.0,0.5770604]
[1641025881083,0.052893,47285.0,47283.0,0.5770604]
[1641025881542,0.00014606,47284.0,47283.0,0.5770604]
[1641025881943,0.00014606,47284.0,47281.0,0.5770604]
[1641025882144,0.052891,47283.0,47281.0,0.5770604]
[1641025882945,0.052891,47283.0,47279.0,0.5782849]
[1641025883247,0.33801589,47283.0,47280.0,7.303e-05]
[1641025883449,0.052891,47283.0,47280.0,7.303e-05]
[1641025883648,0.052891,47283.0,47281.0,0.338633]
[1641025883846,0.052891,47283.0,47279.0,9.129e-05]
[1641025884048,0.052891,47283.0,47280.0,0.338633]
[1641025884249,0.052891,47283.0,47279.0,0.57715169]
[1641025884849,0.052891,47283.0,47279.0,9.129e-05]
[1641025885893,0.052891,47283.0,47277.0,0.00012781]
[1641025886295,0.052891,47283.0,47278.0,0.338633]
[1641025886695,0.052891,47283.0,47279.0,9.129e-05]
[1641025886894,0.052891,47283.0,47280.0,0.338633]
[1641025887096,0.052891,47283.0,47279.0,9.129e-05]
[1641025888797,0.41057168,47286.0,47279.0,9.129e-05]
[1641025888798,0.32260124,47280.0,47279.0,9.129e-05]
[1641025889037,0.32260124,47280.0,47279.0,0.33872429]
[1641025889835,0.33220745,47280.0,47279.0,0.33872429]
[1641025890837,0.02046778,47280.0,47279.0,0.33872429]
[1641025891040,0.01086157,47280.0,47279.0,0.33872429]
[1641025892041,0.052895,47280.0,47279.0,0.33872429]
[1641025892241,0.25805678,47283.0,47279.0,0.33872429]
[1641025892443,0.25805678,47283.0,47279.0,9.129e-05]
[1641025892899,0.27947781,47283.0,47279.0,9.129e-05]
[1641025893100,0.052891,47282.0,47279.0,9.129e-05]
[1641025893700,0.052891,47282.0,47280.0,0.338633]
[1641025894103,0.01944031,47283.0,47280.0,0.338633]
[1641025895203,0.38327848,47288.0,47280.0,0.338633]
[1641025895603,0.38327848,47288.0,47280.0,0.9156934]
[1641025895805,0.40383418,47288.0,47280.0,0.9156934]
[1641025896307,0.052888,47285.0,47280.0,0.5770604]
[1641025896547,0.052888,47285.0,47281.0,0.338633]
[1641025896843,0.052888,47285.0,47280.0,0.5770604]
[1641025897045,0.052888,47285.0,47281.0,0.24514893]
[1641025897644,0.052888,47285.0,47280.0,0.5770604]
[1641025904257,0.052888,47285.0,47281.0,0.338633]
[1641025904453,0.052888,47285.0,47282.0,0.23609127]
[1641025904855,0.052888,47285.0,47283.0,0.338633]
[1641025905053,0.052888,47285.0,47284.0,0.23874255]
[1641025905254,0.02115526,47288.0,47284.0,0.57737555]
[1641025905453,0.02115526,47288.0,47285.0,0.338633]
[1641025906054,0.3229774,47294.0,47285.0,0.338633]
[1641025906254,0.052885,47288.0,47284.0,0.81580295]
[1641025906557,0.052885,47288.0,47285.0,0.338633]
[1641025906758,0.3229774,47294.0,47285.0,0.338633]
[1641025906955,0.33344264,47294.0,47284.0,0.23874255]
[1641025907154,0.33344264,47294.0,47282.0,0.00128046]
[1641025907355,0.052884,47289.0,47283.0,0.338633]
[1641025907554,0.052884,47289.0,47284.0,0.25847736]
[1641025907792,0.27884351,47286.0,47285.0,0.338633]
[1641025907993,0.27884351,47286.0,47282.0,0.00128046]
[1641025908195,0.27884351,47286.0,47283.0,0.338633]
[1641025908595,0.27884351,47286.0,47284.0,0.23509566]
[1641025908796,0.27884351,47286.0,47285.0,0.338633]
[1641025909002,0.33173051,47286.0,47285.0,0.338633]
[1641025909198,0.33173051,47286.0,47282.0,0.00128046]
[1641025909501,0.27884351,47286.0,47283.0,0.338633]
[1641025909698,0.27884351,47286.0,47284.0,0.24196712]
[1641025909897,0.27884351,47286.0,47285.0,0.338633]
[1641025910099,0.28879384,47286.0,47282.0,0.00128046]
[1641025910299,0.00995033,47286.0,47283.0,0.338633]
[1641025910499,0.00995033,47286.0,47284.0,0.25019091]
[1641025910698,0.00995033,47286.0,47285.0,0.338633]
[1641025910898,0.00995033,47286.0,47285.0,0.5829909]
[1641025911098,0.0001278,47291.0,47285.0,0.5829909]
[1641025911547,0.00010955,47290.0,47285.0,0.5829909]
[1641025911947,9.129e-05,47289.0,47285.0,0.5829909]
[1641025912346,7.303e-05,47288.0,47285.0,0.5829909]
[1641025912746,0.05288,47292.0,47285.0,0.5829909]
[1641025913148,0.0001278,47291.0,47285.0,0.5829909]
[1641025913550,0.00010955,47290.0,47285.0,0.5829909]
[1641025913948,9.129e-05,47289.0,47285.0,0.5829909]
[1641025914248,7.303e-05,47288.0,47285.0,0.5829909]
[1641025914549,0.052881,47291.0,47286.0,0.23576102]
[1641025914751,0.00016432,47293.0,47282.0,0.00128046]
[1641025914947,0.00010955,47290.0,47283.0,0.338633]
[1641025915196,0.00014606,47292.0,47284.0,0.2453978]
[1641025915398,9.129e-05,47289.0,47285.0,0.338633]
[1641025915598,0.31270272,47290.0,47282.0,0.00128046]
[1641025915797,7.303e-05,47288.0,47282.0,0.00128046]
[1641025915997,9.129e-05,47289.0,47283.0,0.338633]
[1641025916199,9.129e-05,47289.0,47282.0,0.00128046]
[1641025916399,0.2498671,47285.0,47282.0,0.00128046]
[1641025917602,0.052883,47284.0,47282.0,0.00128046]
[1641025917801,0.126933,47284.0,47279.0,9.129e-05]
[1641025918198,0.126933,47284.0,47278.0,0.00010955]
[1641025918399,0.126933,47284.0,47275.0,0.87224008]
[1641025918400,0.126933,47284.0,47276.0,0.00014606]
[1641025918600,0.10616569,47279.0,47276.0,0.00014606]
[1641025918801,0.10616569,47277.0,47276.0,0.00014606]
[1641025919853,0.10616569,47277.0,47272.0,0.0002191]
[1641025920053,0.42693792,47276.0,47272.0,0.0002191]
[1641025921054,0.44753357,47276.0,47272.0,0.0002191]
[1641025921954,0.052898,47274.0,47272.0,0.0002191]
[1641025926455,0.34275715,47276.0,47273.0,0.338633]
[1641025926650,0.34275715,47276.0,47272.0,0.0002191]
[1641025927149,0.36263288,47276.0,47272.0,0.0002191]
[1641025927349,0.34101765,47276.0,47273.0,0.338633]
[1641025927550,0.34101765,47276.0,47272.0,0.0002191]
[1641025927751,0.34101765,47276.0,47274.0,0.00018258]
[1641025927950,0.052894,47275.0,47272.0,0.0002191]
[1641025929650,0.052894,47275.0,47272.0,0.2102191]
[1641025930049,0.052894,47275.0,47273.0,0.00020084]
[1641025941552,0.31426,47274.0,47273.0,0.00020084]
[1641025942352,0.32519771,47274.0,47273.0,0.00020084]
[1641025943357,0.34368069,47274.0,47273.0,0.00020084]
[1641025943554,0.65348794,47274.0,47273.0,0.00020084]
[1641025944154,0.62406725,47274.0,47273.0,0.00020084]
[1641025944353,0.64499778,47274.0,47273.0,0.00020084]
[1641025945201,0.6640785,47274.0,47273.0,0.00020084]
[1641025945502,0.64314797,47274.0,47273.0,0.00020084]
[1641025946304,0.66483726,47274.0,47273.0,0.00020084]
[1641025946508,0.33594929,47274.0,47273.0,0.00020084]
[1641025947306,0.35618756,47274.0,47273.0,0.00020084]
[1641025947606,0.33449827,47274.0,47273.0,0.00020084]
[1641025948307,0.35505594,47274.0,47273.0,0.00020084]
[1641025948511,0.33481767,47274.0,47273.0,0.00020084]
[1641025949461,0.35632614,47274.0,47273.0,0.00020084]
[1641025949661,0.31426,47274.0,47273.0,0.00020084]
[1641025950460,0.33562916,47274.0,47273.0,0.00020084]
[1641025950660,0.31426,47274.0,47273.0,0.00020084]
[1641025950862,0.21426,47274.0,47273.0,0.00020084]
[1641025951262,0.23387165,47274.0,47273.0,0.00020084]
[1641025953201,0.21426,47274.0,47273.0,0.00020084]
[1641025953604,0.21426,47274.0,47273.0,0.50020084]
[1641025953803,0.052894,47275.0,47273.0,0.50020084]
[1641025954202,0.052894,47275.0,47274.0,0.00018258]
[1641025977095,0.052894,47275.0,47274.0,0.26212634]
[1641025981163,0.052894,47275.0,47274.0,0.00018258]
[1641025984207,0.052894,47275.0,47273.0,0.5]
[1641025984808,0.105804,47275.0,47273.0,0.5]
[1641025985108,0.20582,47274.0,47273.0,0.5]
[1641025985507,0.20582,47274.0,47273.0,0.50020084]
[1641025994552,0.10582,47274.0,47273.0,0.50020084]
[1641025997910,0.20582,47274.0,47273.0,0.50020084]
[1641025998711,0.10582,47274.0,47273.0,0.50020084]
[1641025998911,0.15582,47274.0,47273.0,0.50020084]
[1641026000512,0.20582,47274.0,47273.0,0.50020084]
[1641026004952,0.52624569,47274.0,47273.0,0.50020084]
[1641026005808,0.54691134,47274.0,47273.0,0.50020084]
[1641026006808,0.56809612,47274.0,47273.0,0.50020084]
[1641026007009,0.54743047,47274.0,47273.0,0.50020084]
[1641026007810,0.56831836,47274.0,47273.0,0.50020084]
[1641026008013,0.54713358,47274.0,47273.0,0.50020084]
[1641026008814,0.56676461,47274.0,47273.0,0.50020084]
[1641026009053,0.54587672,47274.0,47273.0,0.50020084]
[1641026009852,0.56509554,47274.0,47273.0,0.50020084]
[1641026010051,0.54546451,47274.0,47273.0,0.50020084]
[1641026010953,0.54670765,47274.0,47273.0,0.50020084]
[1641026011954,0.56769332,47274.0,47273.0,0.50020084]
[1641026012155,1.35848002,47274.0,47273.0,0.187839]
[1641026012354,1.35848002,47274.0,47264.0,0.00673591]
[1641026012355,0.00125886,47267.0,47264.0,0.00673591]
[1641026012556,0.55,47264.0,47261.0,0.002]
[1641026012812,0.00127088,47266.0,47261.0,0.002]
[1641026013013,0.00125665,47263.0,47261.0,0.002]
[1641026013216,0.57130804,47262.0,47261.0,0.002]
[1641026013412,0.67747373,47262.0,47261.0,0.002]
[1641026013611,0.67747373,47262.0,47261.0,0.00207303]
[1641026013612,0.72747373,47262.0,47261.0,0.00207303]
[1641026014212,0.82747373,47262.0,47261.0,0.00207303]
[1641026014812,1.15050185,47262.0,47261.0,0.00207303]
[1641026015011,1.36476185,47262.0,47261.0,0.00207303]
[1641026015913,0.05,47261.0,47255.0,0.00928399]
[1641026016113,0.052933,47258.0,47255.0,0.00928399]
[1641026016315,0.102933,47258.0,47256.0,9.129e-05]
[1641026016959,0.102933,47258.0,47256.0,0.21009129]
[1641026017356,0.102933,47258.0,47257.0,7.303e-05]
[1641026018855,0.111543,47258.0,47257.0,7.303e-05]
[1641026025166,0.325803,47258.0,47257.0,7.303e-05]
[1641026025968,0.3478029,47258.0,47257.0,7.303e-05]
[1641026026968,0.36830549,47258.0,47257.0,7.303e-05]
[1641026027268,0.34630559,47258.0,47257.0,7.303e-05]
[1641026027911,0.36478066,47258.0,47257.0,7.303e-05]
[1641026028112,0.34427807,47258.0,47257.0,7.303e-05]
[1641026029013,0.35493532,47258.0,47257.0,7.303e-05]
[1641026029217,0.33646025,47258.0,47257.0,7.303e-05]
[1641026029613,0.33598124,47258.0,47257.0,7.303e-05]
[1641026030015,0.35477184,47258.0,47257.0,7.303e-05]
[1641026030214,0.33550459,47258.0,47257.0,7.303e-05]
[1641026031016,0.35602525,47258.0,47257.0,7.303e-05]
[1641026031214,0.33723465,47258.0,47257.0,7.303e-05]
[1641026031471,0.74439007,47258.0,47256.0,0.21]
[1641026031657,0.74439007,47258.0,47256.0,0.16728438]
[1641026031658,1.15426,47257.0,47256.0,0.16728438]
[1641026031857,0.56416,47257.0,47251.0,0.01128409]
[1641026032057,0.052943,47254.0,47251.0,0.01128409]
[1641026032258,0.052943,47254.0,47252.0,9.129e-05]
[1641026032456,0.3181377,47253.0,47247.0,0.98437565]
[1641026032657,0.57392283,47253.0,47247.0,0.98437565]
[1641026032857,0.5709807,47253.0,47248.0,7.303e-05]
[1641026033059,0.5180377,47253.0,47248.0,7.303e-05]
[1641026033462,0.5180377,47253.0,47241.0,0.002]
[1641026033463,1.08741029,47247.0,47241.0,0.002]
[1641026033661,0.00121843,47242.0,47241.0,0.002]
[1641026034462,0.72562005,47242.0,47241.0,0.002]
[1641026034661,0.88492336,47242.0,47241.0,0.002]
[1641026035898,0.052951,47237.0,47231.0,1.705707]
[1641026036100,0.052951,47237.0,47231.0,0.577207]
[1641026036299,0.052951,47237.0,47232.0,0.00029213]
[1641026037299,0.052951,47237.0,47232.0,0.21029213]
[1641026037700,0.052951,47237.0,47233.0,0.00027387]
[1641026040671,0.07403395,47239.0,47235.0,0.00124442]
[1641026040870,0.21741029,47247.0,47236.0,0.338941]
[1641026041066,0.02176203,47242.0,47237.0,0.338941]
[1641026041369,0.02176203,47242.0,47238.0,0.00018258]
[1641026041567,0.02176203,47242.0,47239.0,0.77349905]
[1641026041968,0.02176203,47242.0,47240.0,0.00014607]
[1641026042167,0.02176203,47242.0,47241.0,0.338941]
[1641026042567,0.02176203,47242.0,47241.0,0.33906881]
[1641026042812,0.02176203,47242.0,47241.0,0.00012781]
[1641026043112,0.02176203,47242.0,47233.0,0.16310154]
[1641026043314,0.052932,47243.0,47237.0,7.303e-05]
[1641026043713,0.052932,47243.0,47235.0,0.00010955]
[1641026046852,0.05261475,47243.0,47235.0,0.00010955]
[1641026049149,0.052943,47242.0,47235.0,0.00010955]
[1641026049349,0.052941,47239.0,47235.0,0.00010955]
[1641026050411,0.052941,47239.0,47233.0,0.57720646]
[1641026050611,0.105888,47239.0,47234.0,0.0001278]
[1641026050811,0.052948,47237.0,47234.0,0.0001278]
[1641026051014,0.052948,47237.0,47233.0,0.00014606]
[1641026052216,0.052948,47237.0,47234.0,0.338941]
[1641026052414,0.052948,47237.0,47233.0,0.00014606]
[1641026054576,0.052951,47236.0,47233.0,0.00014606]
[1641026054781,0.052953,47235.0,47233.0,0.00014606]
[1641026055878,0.00125286,47234.0,47233.0,0.00014606]
[1641026056077,0.00125286,47234.0,47232.0,0.21]
[1641026056278,0.052959,47233.0,47232.0,0.21]
[1641026057703,0.15912469,47233.0,47232.0,0.21]
[1641026057903,0.052959,47233.0,47232.0,0.21]
[1641026064456,0.0541755,47233.0,47232.0,0.21]
[1641026065060,0.2196445,47233.0,47232.0,0.21]
[1641026065304,0.218428,47233.0,47232.0,0.21]
[1641026066705,0.052959,47233.0,47232.0,0.21]
[1641026067308,0.052959,47233.0,47232.0,0.47365865]
[1641026073814,0.053824,47233.0,47232.0,0.47365865]
[1641026077858,0.053824,47233.0,47232.0,0.46754348]
[1641026081509,0.05354197,47233.0,47232.0,0.46754348]
[1641026083111,0.01354197,47233.0,47232.0,0.46754348]
[1641026097415,0.01354197,47233.0,47232.0,0.20388483]
[1641026098617,0.01354197,47233.0,47232.0,0.18302429]
[1641026104415,0.01354197,47233.0,47232.0,0.16802429]
[1641026106118,0.0147275,47233.0,47232.0,0.16802429]
[1641026115975,0.0147275,47233.0,47232.0,0.40742492]
[1641026116177,0.00205053,47233.0,47232.0,0.40742492]
[1641026116375,0.00205053,47233.0,47232.0,0.74636592]
[1641026116577,0.00205053,47233.0,47232.0,0.747647]
[1641026116776,0.03892893,47240.0,47233.0,0.30115869]
[1641026116978,0.03892893,47240.0,47239.0,0.00121901]
[1641026117182,0.052935,47243.0,47239.0,0.34016001]
[1641026117479,0.052935,47243.0,47240.0,0.338941]
[1641026117704,0.052935,47243.0,47239.0,0.00121901]
[1641026117906,0.052935,47243.0,47241.0,2.01245515]
[1641026118907,0.052935,47243.0,47242.0,0.23356114]
[1641026119308,0.05311758,47243.0,47242.0,0.23356114]
[1641026121978,0.05311758,47243.0,47242.0,0.57250214]
[1641026121979,0.00018258,47243.0,47242.0,0.57250214]
[1641026126612,0.00018258,47243.0,47242.0,0.23356114]
[1641026131272,0.00018258,47243.0,47242.0,0.57250214]
[1641026131571,0.00018258,47243.0,47242.0,0.78250214]
[1641026132470,0.00018258,47243.0,47242.0,0.44356114]
[1641026133107,0.00018258,47243.0,47242.0,0.78250214]
[1641026134407,0.00018258,47243.0,47242.0,0.21]
[1641026134811,0.05312258,47243.0,47242.0,0.21]
[1641026140523,0.05312258,47243.0,47242.0,0.45433356]
[1641026140719,0.05312258,47243.0,47242.0,0.45063613]
[1641026141021,0.05312258,47243.0,47242.0,0.45071067]
[1641026141218,0.05312258,47243.0,47242.0,0.45209276]
[1641026141418,0.05312258,47243.0,47242.0,0.21]
[1641026141620,0.05312258,47243.0,47242.0,0.45201893]
[1641026141817,0.05312258,47243.0,47242.0,0.21]
[1641026142218,0.0512054,47243.0,47242.0,0.21]
[1641026142419,0.0512054,47243.0,47242.0,0.45119817]
[1641026142624,0.0512054,47243.0,47242.0,0.45260807]
[1641026142822,0.052934,47245.0,47242.0,0.45260807]
[1641026143024,0.22664317,47247.0,47242.0,0.45260807]
[1641026143221,0.22664317,47247.0,47243.0,0.23499068]
[1641026143420,0.22664317,47247.0,47243.0,0.23360027]
[1641026143720,0.22664317,47247.0,47243.0,0.23423205]
[1641026143721,0.23845085,47247.0,47243.0,0.23423205]
[1641026143989,0.29138285,47247.0,47243.0,0.23423205]
[1641026144177,0.21741029,47247.0,47244.0,0.338941]
[1641026144880,0.21741029,47247.0,47245.0,0.33479146]
[1641026145077,0.21741029,47247.0,47246.0,0.60438648]
[1641026145477,0.21748332,47247.0,47246.0,0.60438648]
[1641026151683,0.21748332,47247.0,47246.0,0.60560648]
[1641026155617,0.21748332,47247.0,47246.0,0.338941]
[1641026155819,0.21748332,47247.0,47243.0,0.27069379]
[1641026156020,0.21748332,47247.0,47242.0,0.21]
[1641026156419,0.27041532,47247.0,47242.0,0.21]
[1641026160966,0.27041532,47247.0,47243.0,0.23377369]
[1641026161369,0.27041532,47247.0,47244.0,0.338941]
[1641026161568,0.21748332,47247.0,47244.0,0.338941]
[1641026162370,0.21748332,47247.0,47243.0,0.23377369]
[1641026162568,0.21748332,47247.0,47244.0,0.338941]
[1641026162814,0.21748332,47247.0,47245.0,0.338941]
[1641026163015,0.21748332,47247.0,47246.0,0.25602299]
[1641026163217,0.21748332,47247.0,47246.0,0.59496399]
[1641026163413,0.21748332,47247.0,47246.0,0.25602299]
[1641026163615,0.21748332,47247.0,47243.0,0.28463692]
[1641026163819,0.27041532,47247.0,47244.0,0.338941]
[1641026164016,0.27041532,47247.0,47242.0,0.21]
[1641026164215,0.27041532,47247.0,47243.0,0.338941]
[1641026170423,0.00118521,47246.0,47243.0,0.338941]
[1641026170824,0.05411721,47246.0,47243.0,0.338941]
[1641026172027,0.00118521,47246.0,47244.0,0.00121948]
[1641026172228,0.06616853,47247.0,47246.0,1.17018923]
[1641026172426,0.06616853,47247.0,47246.0,0.34018923]
[1641026173025,0.06616853,47247.0,47246.0,1.54644939]
[1641026173425,0.06616853,47247.0,47246.0,0.96938899]
[1641026174064,0.06616853,47247.0,47246.0,1.66186147]
[1641026175360,0.0660955,47247.0,47246.0,1.66186147]
[1641026175562,0.06728115,47247.0,47246.0,1.66186147]
[1641026179820,0.05728115,47247.0,47246.0,1.66186147]
[1641026183869,0.05728115,47247.0,47246.0,0.96938899]